fUST/lending_fUST_20250601
["ID","MTS","AMOUNT","RATE_DAILY","PERIOD"]
[363522185,1748751041706,-430.0,0.00016986,2]
[363522187,1748751041717,-430.0,0.00016986,2]
[363522189,1748751041726,-530.78,0.00016986,2]
[363522190,1748751041736,-430.0,0.00016986,2]
[363522193,1748751041746,-430.0,0.00016986,2]
[363522194,1748751041757,-879.74,0.00016986,2]
[363522197,1748751041767,-1688.1,0.00016986,2]
[363522199,1748751041777,-430.0,0.00016986,2]
[363522201,1748751041790,-430.0,0.00016986,2]
[363522203,1748751041801,-900.98,0.00016986,2]
[363522205,1748751041811,-1596.65,0.00016986,2]
[363522207,1748751041821,-430.0,0.00016986,2]
[363522209,1748751041830,-430.0,0.00016986,2]
[363522211,1748751041840,-430.0,0.00016986,2]
[363522213,1748751041849,-430.0,0.00016986,2]
[363522215,1748751041859,-430.0,0.00016986,2]
[363522217,1748751041868,-430.0,0.00016986,2]
[363522219,1748751041878,-430.0,0.00016986,2]
[363522221,1748751041887,-430.0,0.00016986,2]
[363522223,1748751041896,-451.10038972,0.00016986,2]
[363522225,1748751041906,-687.35,0.00016986,2]
[363522227,1748751041918,-430.0,0.00016986,2]
[363522229,1748751041927,-430.0,0.00016986,2]
[363522231,1748751041937,-725.96,0.00017131,3]
[363522233,1748751041946,-1060.12509787,0.00017141,2]
[363522235,1748751041955,-430.0,0.0001726,2]
[363522237,1748751041965,-527.09,0.0001726,2]
[363522239,1748751041975,-430.0,0.0001726,2]
[363522241,1748751041984,-1230.47,0.0001726,2]
[363522243,1748751041994,-430.0,0.0001726,2]
[363522245,1748751042004,-430.0,0.0001726,2]
[363522247,1748751042013,-430.0,0.0001726,2]
[363522249,1748751042023,-430.0,0.0001726,2]
[363522251,1748751042033,-449.48,0.0001726,2]
[363522253,1748751042043,-430.0,0.0001726,2]
[363522255,1748751042053,-430.0,0.0001726,2]
[363522257,1748751042063,-430.0,0.0001726,2]
[363522259,1748751042072,-430.0,0.0001726,2]
[363522261,1748751042082,-430.0,0.0001726,2]
[363522263,1748751042092,-430.0,0.0001726,2]
[363522265,1748751042102,-450.12,0.0001726,2]
[363522267,1748751042111,-430.0,0.0001726,2]
[363522269,1748751042121,-430.0,0.0001726,2]
[363522271,1748751042130,-430.0,0.0001726,2]
[363522273,1748751042139,-430.0,0.0001726,2]
[363522275,1748751042148,-430.0,0.0001726,2]
[363522277,1748751042158,-430.0,0.0001726,2]
[363522279,1748751042168,-430.0,0.0001726,2]
[363522281,1748751042178,-430.0,0.0001726,2]
[363522283,1748751042187,-430.0,0.0001726,2]
[363522285,1748751042197,-430.0,0.0001726,2]
[363522287,1748751042206,-430.0,0.0001726,2]
[363522289,1748751042215,-430.0,0.0001726,2]
[363522291,1748751042224,-633.42,0.0001726,2]
[363522293,1748751042234,-430.0,0.0001726,2]
[363522294,1748751042243,-430.0,0.0001726,2]
[363522296,1748751042253,-530.78,0.0001726,2]
[363522298,1748751042262,-430.0,0.0001726,2]
[363522300,1748751042271,-430.0,0.0001726,2]
[363522302,1748751042281,-879.74,0.0001726,2]
[363522304,1748751042290,-1688.1,0.0001726,2]
[363522306,1748751042301,-449.46620062,0.0001726,2]
[363522308,1748751042311,-430.0,0.0001726,2]
[363522310,1748751042325,-900.98,0.0001726,2]
[363522312,1748751042335,-1596.65,0.0001726,2]
[363522314,1748751042344,-430.0,0.0001726,2]
[363522316,1748751042353,-430.0,0.0001726,2]
[363522318,1748751042363,-430.0,0.0001726,2]
[363522320,1748751042373,-430.0,0.0001726,2]
[363522322,1748751042383,-430.0,0.0001726,2]
[363522324,1748751042392,-430.0,0.0001726,2]
[363522326,1748751042402,-430.0,0.0001726,2]
[363522328,1748751042412,-430.0,0.0001726,2]
[363522330,1748751042422,-687.35,0.0001726,2]
[363522332,1748751042431,-430.0,0.0001726,2]
[363522334,1748751042441,-430.0,0.0001726,2]
[363522336,1748751042450,-1060.12509787,0.00017383,2]
[363522338,1748751042460,-527.09,0.00017534,2]
[363522340,1748751042469,-430.0,0.00017534,2]
[363522342,1748751042479,-1230.47,0.00017534,2]
[363522344,1748751042489,-430.0,0.00017534,2]
[363522346,1748751042498,-430.0,0.00017534,2]
[363522348,1748751042508,-430.0,0.00017534,2]
[363522350,1748751042517,-430.0,0.00017534,2]
[363522352,1748751042527,-449.48,0.00017534,2]
[363522354,1748751042536,-430.0,0.00017534,2]
[363522356,1748751042545,-430.0,0.00017534,2]
[363522358,1748751042555,-430.0,0.00017534,2]
[363522359,1748751042564,-430.0,0.00017534,2]
[363522361,1748751042574,-430.0,0.00017534,2]
[363522364,1748751042584,-430.0,0.00017534,2]
[363522366,1748751042593,-450.12,0.00017534,2]
[363522367,1748751042603,-430.0,0.00017534,2]
[363522369,1748751042612,-430.0,0.00017534,2]
[363522372,1748751042622,-430.0,0.00017534,2]
[363522373,1748751042632,-153.35420991,0.00017534,2]
[363522375,1748751042645,-430.0,0.00017534,2]
[363522377,1748751042655,-430.0,0.00017534,2]
[363522379,1748751042664,-430.0,0.00017534,2]
[363522381,1748751042674,-430.0,0.00017534,2]
[363522383,1748751042684,-430.0,0.00017534,2]
[363522385,1748751042694,-430.0,0.00017534,2]
[363522387,1748751042703,-430.0,0.00017534,2]
[363522389,1748751042713,-430.0,0.00017534,2]
[363522391,1748751042723,-633.42,0.00017534,2]
[363522393,1748751042733,-430.0,0.00017534,2]
[363522395,1748751042743,-430.0,0.00017534,2]
[363522397,1748751042752,-530.78,0.00017534,2]
[363522399,1748751042762,-430.0,0.00017534,2]
[363522401,1748751042772,-430.0,0.00017534,2]
[363522403,1748751042781,-879.74,0.00017534,2]
[363522405,1748751042791,-1688.1,0.00017534,2]
[363522407,1748751042801,-430.0,0.00017534,2]
[363522409,1748751042812,-900.98,0.00017534,2]
[363522411,1748751042821,-1596.65,0.00017534,2]
[363522413,1748751042831,-430.0,0.00017534,2]
[363522415,1748751042840,-430.0,0.00017534,2]
[363522417,1748751042850,-430.0,0.00017534,2]
[363522419,1748751042859,-430.0,0.00017534,2]
[363522421,1748751042869,-430.0,0.00017534,2]
[363522423,1748751042878,-430.0,0.00017534,2]
[363522425,1748751042887,-430.0,0.00017534,2]
[363522427,1748751042896,-430.0,0.00017534,2]
[363522429,1748751042906,-687.35,0.00017534,2]
[363522431,1748751042915,-430.0,0.00017534,2]
[363522433,1748751042926,-1060.12509787,0.00017624,2]
[363522435,1748751042935,-719.70974553,0.00017765,2]
[363522437,1748751042945,-539.02,0.00017778,2]
[363522439,1748751042955,-527.09,0.00017808,2]
[363522441,1748751042964,-430.0,0.00017808,2]
[363522443,1748751042973,-1230.47,0.00017808,2]
[363522445,1748751042983,-430.0,0.00017808,2]
[363522447,1748751042992,-430.0,0.00017808,2]
[363522448,1748751043001,-430.0,0.00017808,2]
[363522450,1748751043012,-430.0,0.00017808,2]
[363522452,1748751043021,-449.48,0.00017808,2]
[363522454,1748751043031,-430.0,0.00017808,2]
[363522456,1748751043040,-430.0,0.00017808,2]
[363522458,1748751043050,-430.0,0.00017808,2]
[363522460,1748751043060,-547.97759506,0.00017808,2]
[363522462,1748751043069,-430.0,0.00017808,2]
[363522464,1748751043079,-430.0,0.00017808,2]
[363522466,1748751043088,-450.12,0.00017808,2]
[363522468,1748751043097,-430.0,0.00017808,2]
[363522470,1748751043107,-430.0,0.00017808,2]
[363522472,1748751043116,-430.0,0.00017808,2]
[363522474,1748751043126,-430.0,0.00017808,2]
[363522476,1748751043136,-430.0,0.00017808,2]
[363522478,1748751043146,-430.0,0.00017808,2]
[363522481,1748751043156,-430.0,0.00017808,2]
[363522483,1748751043165,-430.0,0.00017808,2]
[363522484,1748751043183,-430.0,0.00017808,2]
[363522486,1748751043193,-430.0,0.00017808,2]
[363522488,1748751043202,-430.0,0.00017808,2]
[363522490,1748751043212,-633.42,0.00017808,2]
[363522492,1748751043222,-430.0,0.00017808,2]
[363522494,1748751043232,-337.66,0.00017808,2]
[363522496,1748751043242,-530.78,0.00017808,2]
[363522498,1748751043251,-430.0,0.00017808,2]
[363522500,1748751043261,-430.0,0.00017808,2]
[363522502,1748751043270,-879.74,0.00017808,2]
[363522504,1748751043280,-1688.1,0.00017808,2]
[363522506,1748751043289,-430.0,0.00017808,2]
[363522508,1748751043300,-900.98,0.00017808,2]
[363522510,1748751043309,-1596.65,0.00017808,2]
[363522512,1748751043318,-430.0,0.00017808,2]
[363522514,1748751043328,-430.0,0.00017808,2]
[363522516,1748751043337,-430.0,0.00017808,2]
[363522518,1748751043347,-430.0,0.00017808,2]
[363522520,1748751043356,-430.0,0.00017808,2]
[363522522,1748751043366,-430.0,0.00017808,2]
[363522524,1748751043375,-430.0,0.00017808,2]
[363522526,1748751043385,-430.0,0.00017808,2]
[363522528,1748751043394,-687.35,0.00017808,2]
[363522529,1748751043403,-430.0,0.00017808,2]
[363522531,1748751043413,-500.0,0.00017825,2]
[363522533,1748751043422,-160.0,0.0001785,2]
[363522535,1748751043431,-160.0,0.00017853,2]
[363522537,1748751043442,-212.80060342,0.00017853,2]
[363522539,1748751043451,-423.51412927,0.00017853,2]
[363522541,1748751043461,-229.3709046,0.00017853,2]
[363522543,1748751043470,-160.0,0.00017853,2]
[363522545,1748751043480,-2857.9,0.00017866,2]
[363522547,1748751043489,-2857.9,0.00017866,2]
[363522549,1748751043499,-1060.12509787,0.00017866,2]
[363522551,1748751043509,-527.09,0.00018082,2]
[363522553,1748751043519,-490.5,0.00018082,2]
[363522555,1748751043530,-1230.47,0.00018082,2]
[363522557,1748751043540,-430.0,0.00018082,2]
[363522559,1748751043549,-430.0,0.00018082,2]
[363522561,1748751043558,-430.0,0.00018082,2]
[363522563,1748751043568,-430.0,0.00018082,2]
[363522565,1748751043577,-449.48,0.00018082,2]
[363522567,1748751043587,-430.0,0.00018082,2]
[363522569,1748751043595,-430.0,0.00018082,2]
[363522571,1748751043606,-430.0,0.00018082,2]
[363522573,1748751043616,-430.0,0.00018082,2]
[363522575,1748751043625,-430.0,0.00018082,2]
[363522577,1748751043635,-450.12,0.00018082,2]
[363522579,1748751043648,-430.0,0.00018082,2]
[363522581,1748751043659,-430.0,0.00018082,2]
[363522583,1748751043668,-430.0,0.00018082,2]
[363522585,1748751043678,-430.0,0.00018082,2]
[363522587,1748751043690,-430.0,0.00018082,2]
[363522590,1748751043700,-430.0,0.00018082,2]
[363522592,1748751043709,-430.0,0.00018082,2]
[363522594,1748751043720,-430.0,0.00018082,2]
[363522596,1748751043730,-430.0,0.00018082,2]
[363522598,1748751043739,-430.0,0.00018082,2]
[363522600,1748751043748,-430.0,0.00018082,2]
[363522602,1748751043757,-633.42,0.00018082,2]
[363522604,1748751043767,-430.0,0.00018082,2]
[363522606,1748751043778,-530.78,0.00018082,2]
[363522607,1748751043788,-430.0,0.00018082,2]
[363522609,1748751043797,-430.0,0.00018082,2]
[363522611,1748751043806,-879.74,0.00018082,2]
[363522613,1748751043816,-1688.1,0.00018082,2]
[363522615,1748751043826,-430.0,0.00018082,2]
[363522617,1748751043835,-900.98,0.00018082,2]
[363522619,1748751043845,-1596.65,0.00018082,2]
[363522621,1748751043854,-430.0,0.00018082,2]
[363522623,1748751043864,-430.0,0.00018082,2]
[363522625,1748751043873,-430.0,0.00018082,2]
[363522627,1748751043882,-430.0,0.00018082,2]
[363522629,1748751043891,-430.0,0.00018082,2]
[363522631,1748751043902,-430.0,0.00018082,2]
[363522633,1748751043911,-430.0,0.00018082,2]
[363522635,1748751043921,-430.0,0.00018082,2]
[363522637,1748751043931,-687.35,0.00018082,2]
[363522639,1748751043941,-545.42,0.00018082,2]
[363522641,1748751043951,-1060.12509787,0.00018107,2]
[363522643,1748751043960,-1227.62,0.00018346,3]
[363522645,1748751043969,-613.8,0.00018346,3]
[363522647,1748751043979,-306.9,0.00018346,3]
[363522649,1748751043988,-1060.12509787,0.00018348,2]
[363522651,1748751043998,-500.0,0.00018355,2]
[363522653,1748751044008,-500.0,0.00018355,2]
[363522655,1748751044017,-187.58107439,0.00018355,2]
[363522657,1748751044027,-500.0,0.00018355,2]
[363522659,1748751044037,-500.0,0.00018355,2]
[363522661,1748751044046,-500.0,0.00018355,2]
[363522663,1748751044057,-500.0,0.00018355,2]
[363522665,1748751044066,-500.0,0.00018355,2]
[363522667,1748751044076,-500.0,0.00018355,2]
[363522669,1748751044086,-500.0,0.00018355,2]
[363522671,1748751044096,-500.0,0.00018355,2]
[363522673,1748751044106,-500.0,0.00018355,2]
[363522674,1748751044117,-500.0,0.00018355,2]
[363522676,1748751044127,-500.0,0.00018355,2]
[363522679,1748751044137,-500.0,0.00018355,2]
[363522681,1748751044147,-2857.8,0.00018356,2]
[363522683,1748751044157,-2857.8,0.00018356,2]
[363522685,1748751044166,-527.09,0.00018356,2]
[363522686,1748751044176,-1230.47,0.00018356,2]
[363522688,1748751044186,-430.0,0.00018356,2]
[363522690,1748751044196,-430.0,0.00018356,2]
[363522692,1748751044205,-430.0,0.00018356,2]
[363522694,1748751044215,-430.0,0.00018356,2]
[363522696,1748751044226,-449.48,0.00018356,2]
[363522698,1748751044236,-430.0,0.00018356,2]
[363522700,1748751044246,-430.0,0.00018356,2]
[363522702,1748751044256,-427.28942035,0.00018356,2]
[363522716,1748751044382,-430.0,0.00018356,2]
[363522718,1748751044393,-430.0,0.00018356,2]
[363522720,1748751044403,-450.12,0.00018356,2]
[363522722,1748751044413,-430.0,0.00018356,2]
[363522724,1748751044423,-430.0,0.00018356,2]
[363522726,1748751044433,-430.0,0.00018356,2]
[363522728,1748751044444,-430.0,0.00018356,2]
[363522730,1748751044455,-430.0,0.00018356,2]
[363522732,1748751044465,-430.0,0.00018356,2]
[363522733,1748751044475,-430.0,0.00018356,2]
[363522735,1748751044486,-430.0,0.00018356,2]
[363522737,1748751044497,-430.0,0.00018356,2]
[363522739,1748751044509,-430.0,0.00018356,2]
[363522741,1748751044520,-430.0,0.00018356,2]
[363522743,1748751044531,-633.42,0.00018356,2]
[363522745,1748751044542,-430.0,0.00018356,2]
[363522747,1748751044558,-430.0,0.00018356,2]
[363522749,1748751044569,-530.78,0.00018356,2]
[363522751,1748751044581,-430.0,0.00018356,2]
[363522753,1748751044594,-879.74,0.00018356,2]
[363522755,1748751044606,-1688.1,0.00018356,2]
[363522757,1748751044619,-430.0,0.00018356,2]
[363522759,1748751044631,-900.98,0.00018356,2]
[363522761,1748751044646,-1596.65,0.00018356,2]
[363522763,1748751044657,-430.0,0.00018356,2]
[363522764,1748751044668,-430.0,0.00018356,2]
[363522766,1748751044680,-430.0,0.00018356,2]
[363522768,1748751044691,-430.0,0.00018356,2]
[363522770,1748751044702,-430.0,0.00018356,2]
[363522772,1748751044712,-459.6,0.00018356,2]
[363522774,1748751044728,-430.0,0.00018356,2]
[363522777,1748751044739,-430.0,0.00018356,2]
[363522778,1748751044749,-687.35,0.00018356,2]
[363522780,1748751044759,-500.0,0.00018373,2]
[363522782,1748751044770,-1060.12509787,0.0001859,2]
[363522784,1748751044780,-527.09,0.0001863,2]
[363522786,1748751044790,-1230.47,0.0001863,2]
[363522788,1748751044800,-430.0,0.0001863,2]
[363522790,1748751044815,-430.0,0.0001863,2]
[363522792,1748751044825,-430.0,0.0001863,2]
[363522794,1748751044836,-430.0,0.0001863,2]
[363522796,1748751044845,-449.48,0.0001863,2]
[363522798,1748751044856,-430.0,0.0001863,2]
[363522800,1748751044866,-439.38,0.0001863,2]
[363522802,1748751044876,-430.0,0.0001863,2]
[363522804,1748751044886,-194.56,0.0001863,2]
[363522806,1748751044897,-450.12,0.0001863,2]
[363522808,1748751044906,-430.0,0.0001863,2]
[363522810,1748751044916,-430.0,0.0001863,2]
[363522812,1748751044926,-430.0,0.0001863,2]
[363522814,1748751044936,-430.0,0.0001863,2]
[363522815,1748751044945,-430.0,0.0001863,2]
[363522817,1748751044955,-430.0,0.0001863,2]
[363522819,1748751044964,-430.0,0.0001863,2]
[363522821,1748751044974,-430.0,0.0001863,2]
[363522823,1748751044984,-430.0,0.0001863,2]
[363522825,1748751044994,-430.0,0.0001863,2]
[363522827,1748751045004,-633.42,0.0001863,2]
[363522829,1748751045014,-430.0,0.0001863,2]
[363522831,1748751045027,-430.0,0.0001863,2]
[363522833,1748751045036,-530.78,0.0001863,2]
[363522835,1748751045046,-430.0,0.0001863,2]
[363522837,1748751045058,-879.74,0.0001863,2]
[363522839,1748751045069,-1688.1,0.0001863,2]
[363522841,1748751045079,-430.0,0.0001863,2]
[363522843,1748751045089,-900.98,0.0001863,2]
[363522845,1748751045099,-1596.65,0.0001863,2]
[363522847,1748751045110,-579.82,0.0001863,2]
[363522848,1748751045119,-430.0,0.0001863,2]
[363522849,1748751045129,-430.0,0.0001863,2]
[363522850,1748751045139,-430.0,0.0001863,2]
[363522851,1748751045150,-430.0,0.0001863,2]
[363522852,1748751045160,-430.0,0.0001863,2]
[363522853,1748751045170,-430.0,0.0001863,2]
[363522854,1748751045180,-687.35,0.0001863,2]
[363522855,1748751045191,-330.167558,0.00018726,2]
[363522856,1748751045201,-330.167558,0.00018726,2]
[363522857,1748751045211,-151.0,0.00018726,2]
[363522858,1748751045221,-151.0,0.00018726,2]
[363522859,1748751045230,-300.048218,0.00018726,2]
[363522860,1748751045241,-300.048218,0.00018726,2]
[363522861,1748751045250,-151.0,0.00018781,2]
[363522862,1748751045260,-500.0,0.00018808,2]
[363522863,1748751045270,-151.0,0.00018808,2]
[363522864,1748751045280,-1060.12509787,0.00018831,2]
[363522865,1748751045290,-500.0,0.00018835,2]
[363522866,1748751045300,-290.75440353,0.00018836,2]
[363522867,1748751045311,-500.0,0.00018863,2]
[363522868,1748751045322,-500.0,0.0001889,2]
[363522869,1748751045332,-151.0,0.00018904,2]
[363522870,1748751045342,-151.0,0.00018904,2]
[363522871,1748751045352,-151.0,0.00018904,2]
[363522872,1748751045362,-151.0,0.00018904,2]
[363522873,1748751045372,-527.09,0.00018904,2]
[363522874,1748751045382,-1230.47,0.00018904,2]
[363522876,1748751045392,-430.0,0.00018904,2]
[363522878,1748751045402,-430.0,0.00018904,2]
[363522880,1748751045411,-430.0,0.00018904,2]
[363522882,1748751045421,-430.0,0.00018904,2]
[363522884,1748751045431,-449.48,0.00018904,2]
[363522886,1748751045440,-393.98,0.00018904,2]
[363522888,1748751045450,-430.0,0.00018904,2]
[363522890,1748751045460,-450.12,0.00018904,2]
[363522892,1748751045470,-578.28,0.00018904,2]
[363522894,1748751045479,-430.0,0.00018904,2]
[363522896,1748751045488,-430.0,0.00018904,2]
[363522898,1748751045498,-430.0,0.00018904,2]
[363522900,1748751045509,-430.0,0.00018904,2]
[363522901,1748751045519,-430.0,0.00018904,2]
[363522904,1748751045530,-430.0,0.00018904,2]
[363522906,1748751045541,-430.0,0.00018904,2]
[363522907,1748751045552,-430.0,0.00018904,2]
[363522909,1748751045563,-430.0,0.00018904,2]
[363522911,1748751045573,-633.42,0.00018904,2]
[363522913,1748751045584,-565.53,0.00018904,2]
[363522915,1748751045594,-430.0,0.00018904,2]
[363522917,1748751045604,-530.78,0.00018904,2]
[363522919,1748751045615,-430.0,0.00018904,2]
[363522921,1748751045625,-879.74,0.00018904,2]
[363522923,1748751045638,-1688.1,0.00018904,2]
[363522925,1748751045649,-430.0,0.00018904,2]
[363522927,1748751045658,-900.98,0.00018904,2]
[363522929,1748751045668,-1596.65,0.00018904,2]
[363522931,1748751045679,-430.0,0.00018904,2]
[363522933,1748751045688,-430.0,0.00018904,2]
[363522935,1748751045698,-430.0,0.00018904,2]
[363522937,1748751045708,-229.26,0.00018904,2]
[363522939,1748751045719,-430.0,0.00018904,2]
[363522941,1748751045730,-430.0,0.00018904,2]
[363522943,1748751045741,-687.35,0.00018904,2]
[363522945,1748751045750,-719.70974553,0.00019049,2]
[363522947,1748751045760,-1060.12509787,0.00019072,2]
[363522949,1748751045770,-500.0,0.00019164,2]
[363522951,1748751045780,-527.09,0.00019178,2]
[363522953,1748751045790,-1230.47,0.00019178,2]
[363522955,1748751045801,-430.0,0.00019178,2]
[363522957,1748751045811,-430.0,0.00019178,2]
[363522959,1748751045821,-430.0,0.00019178,2]
[363522961,1748751045831,-449.48,0.00019178,2]
[363522963,1748751045842,-247.9,0.00019178,2]
[363522965,1748751045853,-450.12,0.00019178,2]
[363522967,1748751045863,-159.28,0.00019178,2]
[363522969,1748751045874,-430.0,0.00019178,2]
[363522971,1748751045885,-466.80434865,0.00019178,2]
[363522973,1748751045895,-195.98431858,0.00019178,2]
[363522975,1748751045906,-430.0,0.00019178,2]
[363522977,1748751045917,-430.0,0.00019178,2]
[363522979,1748751045927,-430.0,0.00019178,2]
[363522981,1748751045937,-430.0,0.00019178,2]
[363522983,1748751045948,-430.0,0.00019178,2]
[363522985,1748751045959,-633.42,0.00019178,2]
[363522987,1748751045968,-430.0,0.00019178,2]
[363522989,1748751045979,-530.78,0.00019178,2]
[363522991,1748751045988,-430.0,0.00019178,2]
[363522993,1748751045998,-879.74,0.00019178,2]
[363522995,1748751046009,-1688.1,0.00019178,2]
[363522997,1748751046018,-430.0,0.00019178,2]
[363522999,1748751046027,-900.98,0.00019178,2]
[363523001,1748751046037,-1596.65,0.00019178,2]
[363523003,1748751046047,-219.73,0.00019178,2]
[363523005,1748751046060,-430.0,0.00019178,2]
[363523007,1748751046070,-430.0,0.00019178,2]
[363523009,1748751046080,-430.0,0.00019178,2]
[363523011,1748751046090,-430.0,0.00019178,2]
[363523013,1748751046100,-500.0,0.00019178,2]
[363523015,1748751046110,-500.0,0.00019178,2]
[363523017,1748751046119,-500.0,0.00019178,2]
[363523019,1748751046129,-500.0,0.00019178,2]
[363523021,1748751046139,-500.0,0.00019178,2]
[363523023,1748751046148,-500.0,0.00019178,2]
[363523025,1748751046158,-500.0,0.00019178,2]
[363523027,1748751046168,-500.0,0.00019178,2]
[363523029,1748751046177,-500.0,0.00019178,2]
[363523031,1748751046188,-424.81801247,0.00019178,2]
[363523033,1748751046197,-687.35,0.00019178,2]
[363523035,1748751046207,-173.167876,0.00019178,2]
[363523037,1748751046216,-1060.12509787,0.00019314,2]
[363523039,1748751046226,-1078.03,0.00019395,2]
[363523041,1748751046235,-527.09,0.00019452,2]
[363523043,1748751046246,-1230.47,0.00019452,2]
[363523045,1748751046256,-175.14,0.00019452,2]
[363523047,1748751046266,-430.0,0.00019452,2]
[363523049,1748751046276,-447.25,0.00019452,2]
[363523051,1748751046286,-449.48,0.00019452,2]
[363523053,1748751046296,-450.12,0.00019452,2]
[363523055,1748751046307,-430.0,0.00019452,2]
[363523057,1748751046317,-559.61,0.00019452,2]
[363523059,1748751046327,-552.86,0.00019452,2]
[363523061,1748751046337,-430.0,0.00019452,2]
[363523063,1748751046347,-430.0,0.00019452,2]
[363523065,1748751046358,-430.0,0.00019452,2]
[363523068,1748751046368,-633.42,0.00019452,2]
[363523069,1748751046378,-430.0,0.00019452,2]
[363523071,1748751046388,-530.78,0.00019452,2]
[363523073,1748751046398,-430.0,0.00019452,2]
[363523075,1748751046407,-879.74,0.00019452,2]
[363523077,1748751046417,-1688.1,0.00019452,2]
[363523079,1748751046427,-430.0,0.00019452,2]
[363523081,1748751046436,-900.98,0.00019452,2]
[363523083,1748751046447,-1596.65,0.00019452,2]
[363523085,1748751046457,-430.0,0.00019452,2]
[363523087,1748751046466,-430.0,0.00019452,2]
[363523089,1748751046475,-430.0,0.00019452,2]
[363523091,1748751046485,-687.35,0.00019452,2]
[363523093,1748751046495,-207.4,0.00019469,2]
[363523095,1748751046503,-1060.12509787,0.00019555,2]
[363523097,1748751046513,-152.48778702,0.00019629,2]
[363523099,1748751046522,-500.0,0.00019629,2]
[363523101,1748751046532,-673.543,0.00019662,2]
[363523103,1748751046542,-527.09,0.00019726,2]
[363523105,1748751046553,-1230.47,0.00019726,2]
[363523107,1748751046562,-430.0,0.00019726,2]
[363523109,1748751046573,-449.48,0.00019726,2]
[363523111,1748751046583,-450.12,0.00019726,2]
[363523113,1748751046593,-393.67323822,0.00019726,2]
[363523115,1748751046602,-430.0,0.00019726,2]
[363523117,1748751046612,-430.0,0.00019726,2]
[363523119,1748751046622,-430.0,0.00019726,2]
[363523122,1748751046632,-633.42,0.00019726,2]
[363523124,1748751046642,-430.0,0.00019726,2]
[363523126,1748751046654,-530.78,0.00019726,2]
[363523127,1748751046664,-430.0,0.00019726,2]
[363523129,1748751046674,-879.74,0.00019726,2]
[363523132,1748751046684,-1688.1,0.00019726,2]
[363523133,1748751046695,-430.0,0.00019726,2]
[363523135,1748751046705,-900.98,0.00019726,2]
[363523137,1748751046715,-1596.65,0.00019726,2]
[363523139,1748751046725,-430.0,0.00019726,2]
[363523141,1748751046736,-430.0,0.00019726,2]
[363523143,1748751046746,-430.0,0.00019726,2]
[363523146,1748751046756,-687.35,0.00019726,2]
[363523148,1748751046765,-1060.12509787,0.00019797,2]
[363523149,1748751046775,-500.0,0.00019827,2]
[363523152,1748751046785,-527.09,0.0002,2]
[363523154,1748751046795,-1230.47,0.0002,2]
[363523155,1748751046806,-430.0,0.0002,2]
[363523158,1748751046817,-449.48,0.0002,2]
[363523160,1748751046827,-450.12,0.0002,2]